fUST/lending_fUST_20241216
["ID","MTS","AMOUNT","RATE_DAILY","PERIOD"]
[345574099,1734361839291,-166.21443995,0.000247,2]
[345574100,1734361839300,-166.21443995,0.000247,2]
[345574101,1734361839311,-193.0,0.00024836,2]
[345574102,1734361839321,-931.95627115,0.00024874,2]
[345574103,1734361839330,-9893.81058075,0.00024889,2]
[345574104,1734361839340,-240.0,0.00025,2]
[345574105,1734361839350,-9893.81058075,0.0002506,2]
[345574106,1734361839360,-351.7244906,0.00025151,2]
[345574107,1734361839370,-351.7244906,0.00025151,2]
[345574108,1734361839380,-687.866,0.0002517,2]
[345574109,1734361839391,-181.912672,0.00025178,2]
[345574110,1734361839402,-358.4565397,0.00025341,2]
[345574111,1734361839412,-9893.81058075,0.0002535,2]
[345574112,1734361839422,-245.0,0.00025395,2]
[345574113,1734361839439,-420.0,0.00025429,2]
[345574114,1734361839448,-529.98171031,0.00025513,2]
[345574115,1734361839458,-155.95,0.00025514,7]
[345574116,1734361839468,-529.98171028,0.00025524,2]
[345574117,1734361839479,-529.98171028,0.00025535,2]
[345574118,1734361839489,-529.98171028,0.00025545,2]
[345574119,1734361839499,-529.98171028,0.00025556,2]
[345574120,1734361839509,-1340.96917078,0.00025573,2]
[345574121,1734361839519,-197.54820622,0.00025613,2]
[345574122,1734361839528,-127080.49897258,0.00025614,2]
[345574123,1734361839538,-6869.34273985,0.00025614,2]
[345574124,1734361839547,-264346.1819333,0.00025614,2]
[345574125,1734361839560,-1000.0,0.00025614,2]
[345574126,1734361839572,-2164.29908,0.00025614,2]
[345574127,1734361839588,-1502.00877422,0.00025614,2]
[345574128,1734361839600,-316676.08971999,0.00025614,2]
[345574137,1734361840737,-1310.27166094,0.00025614,2]
[345574183,1734361846779,-873.987258,0.00025614,2]
[345574184,1734361846946,-3932.27200004,0.00025614,2]
[345574189,1734361871450,163.371321,0.00013973,2]
[345574190,1734361871739,163.371321,0.00021661,2]
[345574193,1734362252513,1889.79,0.00023,2]
[345574194,1734362286304,184.972813,0.00022769,2]
[345574195,1734362376648,3002.0,0.00015,2]
[345574198,1734362692466,5501.3509365,0.0002,2]
[345574200,1734362771686,172.052926,0.00013973,2]
[345574201,1734362771910,172.052926,0.00020447,2]
[345574203,1734362805936,496.65389461,0.00022042,2]
[345574208,1734362863504,-500.0,0.00023202,2]
[345574209,1734362863542,-160.652313,0.00023657,2]
[345574210,1734362863569,-160.652313,0.00023667,2]
[345574211,1734362863592,-160.652313,0.00023677,2]
[345574212,1734362863617,-160.652313,0.00023687,2]
[345574213,1734362863640,-160.652313,0.00023697,2]
[345574214,1734362863664,-160.652313,0.00023707,2]
[345574215,1734362863688,-160.652313,0.00023716,2]
[345574216,1734362863710,-160.652313,0.00023726,2]
[345574217,1734362863732,-160.652313,0.00023736,2]
[345574218,1734362863755,-160.652313,0.00023746,2]
[345574219,1734362863777,-383.490386,0.00023749,2]
[345574220,1734362863801,-160.652313,0.00023756,2]
[345574221,1734362863823,-160.652313,0.00023766,2]
[345574222,1734362863845,-160.652313,0.00023776,2]
[345574223,1734362863997,-190.2275898,0.00024334,2]
[345574224,1734362864019,-500.0,0.00024424,2]
[345574225,1734362864042,-617.36843637,0.000246,2]
[345574226,1734362864063,-161.52387278,0.0002461,2]
[345574227,1734362864085,-3243.0660462,0.00024625,2]
[345574228,1734362864107,-676.158,0.000247,2]
[345574229,1734362864128,-300.0,0.00024704,2]
[345574230,1734362864150,-24900.0,0.00024705,2]
[345574231,1734362864171,-166.0,0.00024932,2]
[345574232,1734362864192,-999.999999,0.00025,2]
[345574233,1734362864214,-166.0,0.00025,2]
[345574234,1734362873337,243.60778261,0.00023,2]
[345574235,1734362876243,1074.7441502,0.00024656,2]
[345574238,1734362890117,6521.32007632,0.00021,2]
[345574240,1734362918213,1742.68726161,0.00011,2]
[345574241,1734362919074,175078.42371212,0.00025,2]
[345574242,1734362920223,9874.73208728,0.00022,2]
[345574244,1734362924180,150.33837597,0.0002,2]
[345574245,1734362946807,166.0,0.00025,2]
[345574246,1734362946835,231.5993051,0.00024614,2]
[345574284,1734363032522,-273.0619218,0.00025013,2]
[345574285,1734363032614,-26.9380782,0.00025013,2]
[345574286,1734363032624,-300.0,0.00025013,2]
[345574287,1734363032633,-155.5075554,0.00025014,2]
[345574288,1734363032643,-258.1341107,0.00025014,2]
[345574289,1734363032652,-153.0,0.00025014,2]
[345574290,1734363032662,-239.4353357,0.00025014,2]
[345574291,1734363032672,-153.1530363,0.00025014,2]
[345574292,1734363032682,-153.1530363,0.00025014,2]
[345574293,1734363032692,-153.0,0.00025014,2]
[345574294,1734363032702,-153.0,0.00025014,2]
[345574295,1734363032711,-9893.81058076,0.00025212,2]
[345574296,1734363032720,-181.912672,0.00025313,2]
[345574297,1734363032732,-2342.84462947,0.00025514,2]
[345574298,1734363032755,-32307.9084293,0.00025514,3]
[345574299,1734363032772,-2342.84462945,0.00025522,2]
[345574300,1734363032792,-2342.84462945,0.0002553,2]
[345574301,1734363032812,-2342.84462945,0.00025537,2]
[345574302,1734363032832,-1206.87225372,0.00025545,2]
[345574303,1734363032850,-2342.84462945,0.00025545,2]
[345574304,1734363032871,-151.0,0.000256,10]
[345574305,1734363032886,-151.0,0.000256,11]
[345574306,1734363032903,-151.0,0.000256,14]
[345574307,1734363032922,-151.0,0.000256,11]
[345574308,1734363032943,-500.0,0.00025612,2]
[345574309,1734363032957,-500.0,0.00025612,2]
[345574310,1734363032976,-500.0,0.00025612,2]
[345574311,1734363032991,-500.0,0.00025612,2]
[345574312,1734363033008,-522.15197559,0.00025612,2]
[345574313,1734363033021,-224.73,0.00025612,2]
[345574314,1734363033036,-160.0,0.00025613,2]
[345574315,1734363033055,-534.11437632,0.00025613,2]
[345574316,1734363033070,-500.0,0.00025613,2]
[345574317,1734363033087,-500.0,0.00025613,2]
[345574318,1734363033104,-500.0,0.00025613,2]
[345574319,1734363033122,-500.0,0.00025613,2]
[345574320,1734363033140,-500.0,0.00025613,2]
[345574321,1734363033155,-500.0,0.00025613,2]
[345574322,1734363033171,-500.0,0.00025613,2]
[345574323,1734363033187,-500.0,0.00025613,2]
[345574324,1734363033229,-500.0,0.00025613,2]
[345574325,1734363033255,-557.11073226,0.00025613,2]
[345574326,1734363033276,-500.0,0.00025613,2]
[345574327,1734363033295,-500.0,0.00025613,2]
[345574328,1734363033314,-500.0,0.00025613,2]
[345574329,1734363033331,-500.0,0.00025613,2]
[345574330,1734363033348,-500.0,0.00025613,2]
[345574331,1734363033368,-500.0,0.00025613,2]
[345574332,1734363033385,-500.0,0.00025613,2]
[345574333,1734363033402,-500.0,0.00025613,2]
[345574334,1734363033418,-273.32753518,0.00025613,2]
[345574335,1734363033434,-500.0,0.00025613,2]
[345574336,1734363033450,-500.0,0.00025613,2]
[345574337,1734363033465,-500.0,0.00025613,2]
[345574338,1734363033481,-500.0,0.00025613,2]
[345574339,1734363033496,-500.0,0.00025613,2]
[345574340,1734363033509,-500.0,0.00025613,2]
[345574341,1734363033519,-500.0,0.00025613,2]
[345574342,1734363033672,-500.0,0.00025613,2]
[345574343,1734363033682,-500.0,0.00025613,2]
[345574344,1734363033692,-500.0,0.00025613,2]
[345574345,1734363033702,-500.0,0.00025613,2]
[345574346,1734363033711,-500.0,0.00025613,2]
[345574347,1734363033720,-500.0,0.00025613,2]
[345574348,1734363033730,-500.0,0.00025613,2]
[345574349,1734363033740,-532.55436257,0.00025613,2]
[345574350,1734363033749,-532.55436257,0.00025613,2]
[345574351,1734363033759,-532.55436257,0.00025613,2]
[345574352,1734363033769,-532.55436257,0.00025613,2]
[345574353,1734363033778,-532.55436257,0.00025613,2]
[345574354,1734363033787,-532.55436257,0.00025613,2]
[345574355,1734363033797,-532.55436257,0.00025613,2]
[345574356,1734363033806,-532.55436257,0.00025613,2]
[345574357,1734363033816,-532.55436257,0.00025613,2]
[345574358,1734363033825,-532.55436257,0.00025613,2]
[345574359,1734363033834,-532.55436257,0.00025613,2]
[345574360,1734363033844,-532.55436257,0.00025613,2]
[345574361,1734363033853,-532.55436257,0.00025613,2]
[345574362,1734363033867,-532.55436257,0.00025613,2]
[345574363,1734363033876,-532.55436257,0.00025613,2]
[345574364,1734363033886,-532.55436257,0.00025613,2]
[345574365,1734363033895,-532.55436257,0.00025613,2]
[345574366,1734363033904,-532.55436257,0.00025613,2]
[345574367,1734363033914,-532.55436257,0.00025613,2]
[345574368,1734363033923,-532.55436257,0.00025613,2]
[345574369,1734363033933,-532.55436257,0.00025613,2]
[345574370,1734363033943,-532.55436257,0.00025613,2]
[345574371,1734363033953,-532.55436257,0.00025613,2]
[345574372,1734363033966,-532.55436257,0.00025613,2]
[345574373,1734363033975,-532.55436257,0.00025613,2]
[345574374,1734363033985,-532.55436257,0.00025613,2]
[345574375,1734363033994,-532.55436257,0.00025613,2]
[345574376,1734363034004,-532.55436257,0.00025613,2]
[345574377,1734363034013,-532.55436257,0.00025613,2]
[345574378,1734363034023,-532.55436257,0.00025613,2]
[345574379,1734363034032,-532.55436257,0.00025613,2]
[345574380,1734363034042,-532.55436257,0.00025613,2]
[345574381,1734363034054,-532.55436257,0.00025613,2]
[345574382,1734363034065,-532.55436257,0.00025613,2]
[345574383,1734363034074,-532.55436257,0.00025613,2]
[345574384,1734363034084,-532.55436257,0.00025613,2]
[345574385,1734363034095,-532.55436257,0.00025613,2]
[345574386,1734363034105,-532.55436257,0.00025613,2]
[345574387,1734363034123,-532.55436257,0.00025613,2]
[345574388,1734363034134,-532.55436257,0.00025613,2]
[345574389,1734363034144,-532.55436257,0.00025613,2]
[345574390,1734363034154,-532.55436257,0.00025613,2]
[345574391,1734363034164,-532.55436257,0.00025613,2]
[345574392,1734363034174,-532.55436257,0.00025613,2]
[345574393,1734363034183,-532.55436257,0.00025613,2]
[345574394,1734363034194,-532.55436257,0.00025613,2]
[345574395,1734363034204,-532.55436257,0.00025613,2]
[345574396,1734363034214,-532.55436257,0.00025613,2]
[345574397,1734363034223,-532.55436257,0.00025613,2]
[345574398,1734363034234,-532.55436257,0.00025613,2]
[345574399,1734363034244,-532.55436257,0.00025613,2]
[345574400,1734363034255,-532.55436257,0.00025613,2]
[345574401,1734363034265,-532.55436257,0.00025613,2]
[345574402,1734363034276,-532.55436257,0.00025613,2]
[345574403,1734363034288,-532.55436257,0.00025613,2]
[345574404,1734363034299,-532.55436257,0.00025613,2]
[345574405,1734363034310,-530.1874543,0.00025613,2]
[345574406,1734363034320,-530.1874543,0.00025613,2]
[345574407,1734363034331,-530.1874543,0.00025613,2]
[345574408,1734363034342,-530.1874543,0.00025613,2]
[345574409,1734363034352,-530.1874543,0.00025613,2]
[345574410,1734363034367,-530.1874543,0.00025613,2]
[345574411,1734363034378,-530.1874543,0.00025613,2]
[345574412,1734363034387,-530.1874543,0.00025613,2]
[345574413,1734363034396,-530.1874543,0.00025613,2]
[345574414,1734363034406,-530.1874543,0.00025613,2]
[345574415,1734363034416,-530.1874543,0.00025613,2]
[345574416,1734363034425,-530.1874543,0.00025613,2]
[345574417,1734363034434,-530.1874543,0.00025613,2]
[345574418,1734363034443,-530.1874543,0.00025613,2]
[345574419,1734363034456,-530.1874543,0.00025613,2]
[345574420,1734363034466,-530.1874543,0.00025613,2]
[345574421,1734363034476,-530.1874543,0.00025613,2]
[345574422,1734363034486,-530.1874543,0.00025613,2]
[345574423,1734363034495,-530.1874543,0.00025613,2]
[345574424,1734363034505,-530.1874543,0.00025613,2]
[345574425,1734363034514,-530.1874543,0.00025613,2]
[345574426,1734363034523,-530.1874543,0.00025613,2]
[345574427,1734363034533,-530.1874543,0.00025613,2]
[345574428,1734363034543,-530.1874543,0.00025613,2]
[345574429,1734363034554,-530.1874543,0.00025613,2]
[345574430,1734363034565,-530.1874543,0.00025613,2]
[345574431,1734363034575,-530.1874543,0.00025613,2]
[345574432,1734363034584,-530.1874543,0.00025613,2]
[345574433,1734363034594,-530.18745431,0.00025613,2]
[345574434,1734363034603,-530.18745431,0.00025613,2]
[345574435,1734363034622,-16845.84921206,0.00025614,2]
[345574473,1734363038185,-1272.1758512,0.000256,2]
[345574478,1734363038225,-6727.8241488,0.000256,2]
[345574480,1734363038235,-243.66263569,0.00025614,2]
[345574685,1734363040020,-1611.26236207,0.00025614,2]
[345574952,1734363042633,-665.4,0.00025449,15]
[345574955,1734363042658,-90992.14542462,0.00025614,2]
[345574959,1734363042680,-3581.44581077,0.00025614,2]
[345574962,1734363042702,-152.228969,0.00025614,7]
[345574965,1734363042724,-151.0,0.00025614,7]
[345574969,1734363042746,-366.293139,0.00025614,7]
[345574972,1734363042768,-366.293139,0.00025614,7]
[345574975,1734363042788,-151.0,0.00025614,7]
[345574978,1734363042809,-151.0,0.00025614,7]
[345574982,1734363042832,-151.0,0.00025614,7]
[345574985,1734363042853,-435.010802,0.00025614,7]
[345574988,1734363042876,-151.0,0.00025614,7]
[345574991,1734363042898,-151.0,0.00025614,7]
[345574995,1734363042920,-338.250008,0.00025614,7]
[345574998,1734363042942,-338.250008,0.00025614,7]
[345575001,1734363042963,-151.0,0.00025614,7]
[345575004,1734363042985,-151.0,0.00025614,7]
[345575008,1734363043007,-787.654694,0.00025614,7]
[345575011,1734363043028,-278.069522,0.00025614,7]
[345575014,1734363043050,-787.654694,0.00025614,7]
[345575018,1734363043074,-278.069522,0.00025614,7]
[345575021,1734363043095,-544.909296,0.00025614,7]
[345575024,1734363043120,-544.909296,0.00025614,7]
[345575028,1734363043142,-203.051736,0.00025614,7]
[345575031,1734363043164,-553.888817,0.00025614,7]
[345575034,1734363043187,-553.888817,0.00025614,7]
[345575037,1734363043208,-203.051736,0.00025614,7]
[345575041,1734363043229,-553.888817,0.00025614,7]
[345575044,1734363043252,-553.888817,0.00025614,7]
[345575047,1734363043273,-189.781156,0.00025614,7]
[345575051,1734363043294,-637.969363,0.00025614,7]
[345575054,1734363043315,-637.969363,0.00025614,7]
[345575057,1734363043336,-637.969363,0.00025614,7]
[345575058,1734363043357,-637.969363,0.00025614,7]
[345575059,1734363043380,-809.642292,0.00025614,7]
[345575062,1734363043402,-809.642292,0.00025614,7]
[345575066,1734363043423,-809.642292,0.00025614,7]
[345575069,1734363043445,-809.642292,0.00025614,7]
[345575072,1734363043466,-1700.923372,0.00025614,7]
[345575076,1734363043488,-1700.923372,0.00025614,7]
[345575079,1734363043509,-1700.923372,0.00025614,7]
[345575082,1734363043532,-1700.923372,0.00025614,7]
[345575086,1734363043553,-460.429578,0.00025614,7]
[345575099,1734363043662,-460.429578,0.00025614,7]
[345575102,1734363043688,-460.429578,0.00025614,7]
[345575106,1734363043712,-460.429578,0.00025614,7]
[345575109,1734363043734,-151.0,0.00025614,7]
[345575113,1734363043757,-151.0,0.00025614,7]
[345575116,1734363043778,-151.0,0.00025614,7]
[345575119,1734363043800,-151.0,0.00025614,7]
[345575122,1734363043822,-635.877194,0.00025614,7]
[345575126,1734363043843,-635.877194,0.00025614,7]
[345575129,1734363043867,-635.877194,0.00025614,7]
[345575133,1734363043888,-635.877194,0.00025614,7]
[345575136,1734363043909,-151.0,0.00025614,7]
[345575139,1734363043930,-151.0,0.00025614,7]
[345575143,1734363043953,-56514.60858361,0.00025614,2]
[345575197,1734363044455,-1322.6099985,0.00025614,2]
[345575202,1734363044493,-12760.44058669,0.00025614,2]
[345575207,1734363044535,-303.60562641,0.00025614,2]
[345575298,1734363045851,-3980.9,0.00025614,2]
[345575316,1734363046344,-249917.39530105,0.00025614,2]
[345575317,1734363046355,-446.31324691,0.00025614,2]
[345575318,1734363046372,-21224.704,0.00025614,2]
[345575319,1734363046387,-1381.20079694,0.00025614,2]
[345575320,1734363046398,-256.90334771,0.00025614,2]
[345575321,1734363046479,166.0,0.00025,2]
[345575328,1734363079035,-300.0,0.00025499,2]
[345575329,1734363079058,-300.0,0.00025613,2]
[345575330,1734363079083,-250.35,0.00025614,2]
[345575331,1734363079108,-190201.65,0.00025614,2]
[345575332,1734363115970,-1131.93409526,0.00025545,2]
[345575333,1734363115996,-82042.88017947,0.00025614,2]
[345575334,1734363116021,-3581.44581077,0.00025614,2]
[345575335,1734363116044,-221688.7399145,0.00025614,2]
[345575336,1734363146862,166.0,0.00025,2]
[345575337,1734363167076,250.0,0.00024636,2]
[345575338,1734363200019,24900.0,0.00024613,2]
[345575339,1734363246322,168.0,0.00025,2]
[345575343,1734363345897,168.0,0.00025,2]
[345575344,1734363346998,203.0,0.00024,2]
[345575345,1734363357134,472.45,0.00025,2]
[345575346,1734363376378,191.745193,0.00024547,2]
[345575347,1734363397268,150.56552331,0.00025,2]
[345575348,1734363446905,168.0,0.00025,2]
[345575349,1734363480224,174.506555,0.00024297,2]
[345575350,1734363495942,647.702,0.000247,2]
[345575351,1734363511609,185.594808,0.00023343,2]
[345575352,1734363591394,231567.66877033,0.00025,3]
[345575353,1734363635333,13221.99085519,0.00023,4]
[345575354,1734363635362,15000.0,0.00023,4]
[345575355,1734363673286,40210.0,0.000202,3]
[345575356,1734363863264,162.997508,0.00013973,2]
[345575376,1734364175114,-162.997508,0.00020807,2]
[345575377,1734364175138,-300.0,0.00024438,2]
[345575378,1734364175160,-300.0,0.00024438,2]
[345575379,1734364175182,-24900.0,0.00024439,2]
[345575380,1734364175204,-1000.0,0.00025,25]
[345575381,1734364175225,-14853.06994693,0.00025,2]
[345575382,1734364175246,-204.0,0.00025,2]
[345575383,1734364175268,-6261.46748548,0.00025267,2]
[345575384,1734364175290,-990.4423333,0.000255,2]
[345575385,1734364175314,-30865.89500446,0.00025514,3]
[345575386,1734364175334,-1180.28453131,0.00025545,2]
[345575387,1734364175355,-1500.0,0.000256,2]
[345575388,1734364175381,-1500.0,0.000256,2]
[345575389,1734364175405,-1500.0,0.000256,2]
[345575390,1734364175431,-1500.0,0.000256,2]
[345575391,1734364175451,-1500.0,0.000256,2]
[345575392,1734364175472,-1628.49,0.000256,2]
[345575393,1734364175494,-1500.0,0.000256,2]
[345575394,1734364175515,-1500.0,0.000256,2]
[345575395,1734364175536,-934.35319052,0.000256,2]
[345575424,1734364232079,-620.761,0.000247,2]
[345575426,1734364232090,-565.64680948,0.000256,2]
[345575428,1734364232100,-139.59219052,0.00025612,2]
[345575431,1734364232112,-160.40780948,0.00025612,2]
[345575433,1734364232122,-224.73,0.00025613,2]
[345575435,1734364232132,-10.10072172,0.00025613,2]
[345575521,1734364239023,-155.28444541,0.00025613,2]
[345575523,1734364239033,-390.1597189,0.00025613,2]
[345575525,1734364239042,-500.0,0.00025613,2]
[345575527,1734364239052,-429.86436777,0.00025613,2]
[345575529,1734364239062,-500.0,0.00025613,2]
[345575531,1734364239073,-537.81271371,0.00025613,2]
[345575533,1734364239082,-500.0,0.00025613,2]
[345575535,1734364239092,-500.0,0.00025613,2]
[345575537,1734364239101,-634.29986817,0.00025613,2]
[345575539,1734364239111,-500.0,0.00025613,2]
[345575541,1734364239120,-500.0,0.00025613,2]
[345575543,1734364239130,-500.0,0.00025613,2]
[345575545,1734364239140,-500.0,0.00025613,2]
[345575547,1734364239150,-500.0,0.00025613,2]
[345575549,1734364239159,-500.0,0.00025613,2]
[345575551,1734364239175,-500.0,0.00025613,2]
[345575553,1734364239184,-500.0,0.00025613,2]
[345575555,1734364239193,-500.0,0.00025613,2]
[345575557,1734364239203,-500.0,0.00025613,2]
[345575559,1734364239213,-500.0,0.00025613,2]
[345575561,1734364239222,-500.0,0.00025613,2]
[345575563,1734364239232,-500.0,0.00025613,2]
[345575565,1734364239241,-500.0,0.00025613,2]
[345575567,1734364239251,-500.0,0.00025613,2]
[345575569,1734364239260,-500.0,0.00025613,2]
[345575571,1734364239269,-484.38164353,0.00025613,2]
[345575573,1734364239279,-500.0,0.00025613,2]
[345575575,1734364239289,-500.0,0.00025613,2]
[345575577,1734364239298,-500.0,0.00025613,2]
[345575579,1734364239308,-500.0,0.00025613,2]
[345575581,1734364239317,-320.99724234,0.00025613,2]
[345575623,1734364239711,-179.00275766,0.00025613,2]
[345575625,1734364239721,-500.0,0.00025613,2]
[345575627,1734364239731,-500.0,0.00025613,2]
[345575629,1734364239741,-177.61224234,0.00025613,2]
[345575686,1734364240281,-322.38775766,0.00025613,2]
[345575688,1734364240291,-105.24888696,0.00025613,2]
[345575692,1734364240322,-144.81968878,0.00025613,2]
[345575694,1734364240331,-500.0,0.00025613,2]
[345575696,1734364240341,-500.0,0.00025613,2]
[345575698,1734364240351,-500.0,0.00025613,2]
[345575700,1734364240360,-500.0,0.00025613,2]
[345575702,1734364240370,-500.0,0.00025613,2]
[345575704,1734364240379,-500.0,0.00025613,2]
[345575706,1734364240389,-548.58469731,0.00025613,2]
[345575709,1734364240399,-500.0,0.00025613,2]
[345575710,1734364240408,-500.0,0.00025613,2]
[345575713,1734364240423,-500.0,0.00025613,2]
[345575715,1734364240440,-500.0,0.00025613,2]
[345575716,1734364240450,-500.0,0.00025613,2]
[345575718,1734364240460,-500.0,0.00025613,2]
[345575721,1734364240470,-500.0,0.00025613,2]
[345575722,1734364240481,-500.0,0.00025613,2]
[345575725,1734364240490,-500.0,0.00025613,2]
[345575728,1734364240500,-500.0,0.00025613,2]
[345575730,1734364240510,-500.0,0.00025613,2]
[345575732,1734364240520,-500.0,0.00025613,2]
[345575734,1734364240531,-500.0,0.00025613,2]
[345575736,1734364240541,-200.0,0.00025613,2]
[345575738,1734364240551,-500.0,0.00025613,2]
[345575740,1734364240561,-500.0,0.00025613,2]
[345575742,1734364240571,-500.0,0.00025613,2]
[345575744,1734364240581,-500.0,0.00025613,2]
[345575746,1734364240591,-500.0,0.00025613,2]
[345575748,1734364240601,-500.0,0.00025613,2]
[345575750,1734364240613,-500.0,0.00025613,2]
[345575752,1734364240623,-500.0,0.00025613,2]
[345575754,1734364240633,-500.0,0.00025613,2]
[345575756,1734364240643,-500.0,0.00025613,2]
[345575758,1734364240653,-500.0,0.00025613,2]
[345575760,1734364240663,-500.0,0.00025613,2]
[345575762,1734364240677,-500.0,0.00025613,2]
[345575764,1734364240687,-500.0,0.00025613,2]
[345575766,1734364240697,-500.0,0.00025613,2]
[345575768,1734364240708,-500.0,0.00025613,2]
[345575771,1734364240717,-500.0,0.00025613,2]
[345575773,1734364240727,-500.0,0.00025613,2]
[345575775,1734364240738,-500.0,0.00025613,2]
[345575777,1734364240748,-500.0,0.00025613,2]
[345575779,1734364240758,-500.0,0.00025613,2]
[345575781,1734364240767,-500.0,0.00025613,2]
[345575783,1734364240777,-500.0,0.00025613,2]
[345575785,1734364240787,-500.0,0.00025613,2]
[345575787,1734364240796,-500.0,0.00025613,2]
[345575789,1734364240806,-274.56262729,0.00025613,2]
[345575791,1734364240815,-500.0,0.00025613,2]
[345575793,1734364240825,-500.0,0.00025613,2]
[345575794,1734364240834,-500.0,0.00025613,2]
[345575797,1734364240846,-500.0,0.00025613,2]
[345575799,1734364240856,-500.0,0.00025613,2]
[345575801,1734364240865,-500.0,0.00025613,2]
[345575803,1734364240875,-500.0,0.00025613,2]
[345575805,1734364240885,-500.0,0.00025613,2]
[345575807,1734364240894,-500.0,0.00025613,2]
[345575809,1734364240904,-500.0,0.00025613,2]
[345575811,1734364240913,-500.0,0.00025613,2]
[345575813,1734364240925,-500.0,0.00025613,2]
[345575815,1734364240934,-500.0,0.00025613,2]
[345575817,1734364240944,-500.0,0.00025613,2]
[345575819,1734364240953,-500.0,0.00025613,2]
[345575821,1734364240962,-500.0,0.00025613,2]
[345575822,1734364240971,-500.0,0.00025613,2]
[345575825,1734364240982,-500.0,0.00025613,2]
[345575827,1734364240991,-500.0,0.00025613,2]
[345575829,1734364241001,-476.02340051,0.00025613,2]
[345575831,1734364241011,-500.0,0.00025613,2]
[345575833,1734364241020,-500.0,0.00025613,2]
[345575835,1734364241030,-435.53577054,0.00025613,2]
[345575836,1734364241039,-500.0,0.00025613,2]
[345575839,1734364241049,-500.0,0.00025613,2]
[345575841,1734364241058,-500.0,0.00025613,2]
[345575843,1734364241068,-500.0,0.00025613,2]
[345575845,1734364241077,-500.0,0.00025613,2]
[345575847,1734364241087,-500.0,0.00025613,2]
[345575849,1734364241096,-500.0,0.00025613,2]
[345575851,1734364241105,-500.0,0.00025613,2]
[345575853,1734364241116,-500.0,0.00025613,2]
[345575855,1734364241126,-500.0,0.00025613,2]
[345575857,1734364241135,-500.0,0.00025613,2]
[345575859,1734364241144,-500.0,0.00025613,2]
[345575861,1734364241153,-500.0,0.00025613,2]
[345575863,1734364241165,-399.58511491,0.00025613,2]
[345575865,1734364241174,-500.0,0.00025613,2]
[345575867,1734364241185,-500.0,0.00025613,2]
[345575869,1734364241195,-500.0,0.00025613,2]
[345575871,1734364241204,-500.0,0.00025613,2]
[345575873,1734364241214,-164.93129372,0.00025613,2]
[345575875,1734364241223,-500.0,0.00025613,2]
[345575877,1734364241233,-692.25032313,0.00025613,2]
[345575879,1734364241243,-500.0,0.00025613,2]
[345575881,1734364241253,-692.25032313,0.00025613,2]
[345575883,1734364241263,-500.0,0.00025613,2]
[345575885,1734364241272,-500.0,0.00025613,2]
[345575887,1734364241281,-692.25032313,0.00025613,2]
[345575889,1734364241290,-500.0,0.00025613,2]
[345575891,1734364241300,-500.0,0.00025613,2]
[345575892,1734364241309,-500.0,0.00025613,2]
[345575893,1734364241318,-692.25032313,0.00025613,2]
[345575894,1734364241328,-500.0,0.00025613,2]
[345575895,1734364241337,-500.0,0.00025613,2]
[345575896,1734364241347,-692.25032313,0.00025613,2]
[345575897,1734364241357,-500.0,0.00025613,2]
[345575899,1734364241440,-500.0,0.00025613,2]
[345575901,1734364241451,-500.0,0.00025613,2]
[345575903,1734364241460,-692.25032313,0.00025613,2]
[345575905,1734364241470,-500.0,0.00025613,2]
[345575907,1734364241482,-500.0,0.00025613,2]
[345575909,1734364241491,-692.25032313,0.00025613,2]